bitfinex/quotes_ETHUSD_20240810
["timestamp","ask_amount","ask_price","bid_price","bid_amount"]
[1723288578258,2.89394,2640.0,2639.6,0.72662171]
[1723288579652,1.0,2640.0,2639.7,2.4334]
[1723288579845,1.0,2640.0,2639.7,2.55055116]
[1723288580281,1.0,2640.0,2639.9,2.4334]
[1723288580646,1.0,2640.0,2639.9,2.55042102]
[1723288581050,1.0,2640.0,2639.9,4.44443102]
[1723288581287,1.0,2640.0,2639.9,5.16160315]
[1723288581701,1.0,2640.0,2639.9,3.1918404]
[1723288583607,1.0,2640.0,2639.9,5.0858504]
[1723288584285,1.0,2640.0,2639.9,3.1918404]
[1723288584474,1.0,2640.0,2639.9,5.0858504]
[1723288586013,1.0,2640.0,2639.9,3.1918404]
[1723288588373,1.0,2640.0,2639.9,0.11702102]
[1723288588578,1.0,2640.0,2639.7,2.3404]
[1723288588812,1.0,2640.0,2639.8,0.11187379]
[1723288589013,1.0,2640.0,2639.7,2.3404]
[1723288589244,1.0,2640.0,2639.8,0.11187298]
[1723288589424,1.0,2640.0,2639.7,2.57444]
[1723288589609,2.89393,2640.0,2639.9,0.1118409]
[1723288589804,2.89393,2640.0,2639.7,2.57444]
[1723288590137,2.89393,2640.0,2639.8,0.11190301]
[1723288590455,2.89393,2640.0,2638.8,2.711]
[1723288590456,1.89422,2639.6,2639.5,2.3404]
[1723288590666,1.89422,2639.6,2639.1,2.3404]
[1723288591754,1.8941,2639.8,2639.1,2.3404]
[1723288591960,2.89396,2640.0,2639.3,4.23484]
[1723288592759,1.89407,2639.9,2639.4,0.11242365]
[1723288592904,1.89409,2639.8,2639.4,0.11242365]
[1723288593343,1.89409,2639.8,2639.4,0.40005632]
[1723288594527,2.89396,2640.0,2639.4,0.40005632]
[1723288595108,1.89405,2639.9,2639.4,0.40005632]
[1723288595562,2.89396,2640.0,2639.4,0.40005632]
[1723288595851,2.89396,2640.0,2639.5,2.3404]
[1723288596053,2.89396,2640.0,2639.5,3.15035636]
[1723288597178,1.0,2640.0,2639.5,3.15035636]
[1723288597863,1.0,2640.0,2639.5,5.04464636]
[1723288599202,2.89394,2640.0,2639.5,3.15035636]
[1723288599602,1.89408,2639.8,2639.5,3.15035636]
[1723288599904,1.89408,2639.8,2639.5,2.45282673]
[1723288601189,3.78821,2639.8,2639.5,2.45282673]
[1723288601371,1.89408,2639.8,2639.5,2.45282673]
[1723288606094,2.89397,2640.0,2639.5,2.45282673]
[1723288606994,1.89408,2639.8,2639.5,2.45282673]
[1723288607573,1.89415,2639.7,2639.5,2.45282673]
[1723288608181,1.89408,2639.8,2639.5,2.45282673]
[1723288610277,3.78822,2639.8,2639.5,2.45282673]
[1723288610477,3.78822,2639.8,2639.5,0.11242673]
[1723288610673,3.78822,2639.8,2639.2,2.4382]
[1723288610913,1.89408,2639.8,2639.6,0.11230721]
[1723288611207,1.89408,2639.8,2639.3,0.433272]
[1723288611383,1.89408,2639.8,2639.7,0.11224509]
[1723288611590,1.89408,2639.8,2639.4,2.4382]
[1723288612199,1.89408,2639.8,2639.5,0.11236933]
[1723288617525,1.89416,2639.7,2639.5,0.11236933]
[1723288617931,1.89416,2639.7,2639.6,19.56]
[1723288618233,1.89416,2639.7,2639.6,19.67230129]
[1723288619287,3.78832,2639.7,2639.6,19.67230129]
[1723288619466,7.720855,2639.7,2639.6,0.11230129]
[1723288619681,2.2714,2639.1,2638.5,2.4382]
[1723288619976,2.2714,2639.1,2638.6,19.56]
[1723288619977,1.89492,2638.7,2638.6,19.56]
[1723288620349,1.89492,2638.7,2638.0,12.31]
[1723288620350,1.89501,2638.5,2638.4,19.56]
[1723288620547,1.89497,2638.6,2638.1,19.56]
[1723288620850,1.89484,2638.8,2638.2,2.75472991]
[1723288621049,4.89468,2639.0,2638.3,0.04706068]
[1723288621296,1.89484,2638.8,2638.3,2.4382]
[1723288622283,1.89484,2638.8,2638.4,0.51432]
[1723288622906,3.7897,2638.8,2638.5,0.11350569]
[1723288623467,3.7897,2638.8,2638.3,2.4382]
[1723288623666,3.7897,2638.8,2638.6,0.11355008]
[1723288623863,3.0,2639.0,2638.4,19.56]
[1723288623864,1.89494,2638.6,2638.4,19.56]
[1723288624227,1.89501,2638.5,2638.4,19.56]
[1723288624418,3.79002,2638.5,2638.4,19.56]
[1723288625304,1.89501,2638.5,2638.4,19.56]
[1723288625910,3.79002,2638.5,2638.4,19.56]
[1723288627009,1.89501,2638.5,2638.4,19.56]
[1723288627917,3.79002,2638.5,2638.4,19.56]
[1723288628078,1.89501,2638.5,2638.4,19.56]
[1723288629914,1.89512,2638.4,2638.1,19.56]
[1723288630115,3.79027,2638.4,2638.1,19.56]
[1723288630269,1.89512,2638.4,2638.1,19.56]
[1723288630910,1.89516,2638.3,2638.1,19.56]
[1723288631401,1.8952,2638.3,2638.1,19.56]
[1723288631967,1.89512,2638.4,2638.1,19.56]
[1723288632710,3.79026,2638.4,2638.1,19.56]
[1723288633470,1.89518,2638.3,2638.1,19.56]
[1723288633670,1.89523,2638.2,2638.1,19.56]
[1723288635826,1.89523,2638.2,2637.8,2.3662]
[1723288636134,1.89483,2638.8,2637.5,21.69568]
[1723288636135,1.89485,2638.8,2638.2,2.3662]
[1723288636286,1.89492,2638.7,2638.3,19.56]
[1723288636482,4.89492,2638.7,2638.3,19.56]
[1723288636703,4.89492,2638.7,2638.3,21.942149]
[1723288636924,1.89492,2638.7,2638.3,21.942149]
[1723288637580,1.89492,2638.7,2638.4,0.11485849]
[1723288637787,1.89485,2638.8,2638.4,0.11485849]
[1723288638731,3.7897,2638.8,2638.4,0.11485849]
[1723288638946,1.89487,2638.7,2638.4,0.11485849]
[1723288640197,1.89487,2638.7,2638.4,1.73935807]
[1723288640610,1.89477,2638.9,2638.4,1.73935807]
[1723288640810,1.89477,2638.9,2638.5,2.3662]
[1723288641210,1.89477,2638.9,2638.6,0.11471637]
[1723288641647,7.08325,2639.2,2638.6,0.11471637]
[1723288641866,1.89455,2639.2,2638.6,2.48125797]
[1723288642147,1.89467,2639.0,2638.6,2.48125797]
[1723288642509,1.89473,2638.9,2638.6,2.48125797]
[1723288642735,1.89467,2639.0,2638.6,2.48125797]
[1723288642949,1.89467,2639.0,2638.7,1.64010698]
[1723288643144,1.89467,2639.0,2638.7,1.75457166]
[1723288644638,1.89473,2638.9,2638.7,0.11446468]
[1723288644955,1.89473,2638.9,2638.5,21.9262]
[1723288644956,1.89467,2639.0,2638.5,21.9262]
[1723288645456,3.78937,2639.0,2638.5,21.9262]
[1723288645641,1.89467,2639.0,2638.6,2.30673802]
[1723288646535,3.78937,2639.0,2638.6,2.30673802]
[1723288646754,1.89474,2638.9,2638.6,2.30673802]
[1723288647452,1.89467,2639.0,2638.6,2.30673802]
[1723288647647,1.89467,2639.0,2638.6,21.86673802]
[1723288647856,3.02567,2639.0,2638.6,21.86673802]
[1723288648617,1.89472,2638.9,2638.6,21.86673802]
[1723288648943,3.02555,2639.2,2638.8,2.2546]
[1723288649304,3.02555,2639.2,2638.8,21.8146]
[1723288649431,3.02555,2639.2,2638.9,0.11391378]
[1723288649830,1.89462,2639.1,2638.9,0.11391378]
[1723288651118,1.89434,2639.5,2638.9,2.30676516]
[1723288651457,3.0252,2639.7,2639.1,4.14918]
[1723288651662,1.131,2639.7,2639.2,1.8945]
[1723288651811,3.02503,2639.9,2639.3,2.2546]
[1723288652017,4.91909,2639.9,2639.3,22.24087622]
[1723288652257,4.91909,2639.9,2639.4,0.11353793]
[1723288652459,1.8941,2639.8,2639.4,0.11353793]
[1723288653054,3.02503,2639.9,2639.4,0.11353793]
[1723288653254,4.91909,2639.9,2639.4,2.53842935]
[1723288653804,1.0,2640.0,2639.4,2.53842935]
[1723288653956,1.0,2640.0,2639.8,2.2546]
[1723288654162,1.0,2640.0,2639.9,2.00663937]
[1723288654350,1.0,2640.0,2639.9,4.26123937]
[1723288654550,1.0,2640.0,2639.9,2.36722937]
[1723288656292,1.0,2640.0,2639.9,4.26123937]
[1723288656495,1.0,2640.0,2639.9,4.87676631]
[1723288656840,1.0,2640.0,2639.9,2.98275631]
[1723288656982,1.0,2640.0,2639.9,4.87676631]
[1723288657307,1.0,2640.0,2639.9,2.98275631]
[1723288657989,1.0,2640.0,2639.9,4.87676631]
[1723288658189,1.0,2640.0,2639.9,5.42676631]
[1723288658549,1.0,2640.0,2639.9,7.32077631]
[1723288660361,1.0,2640.0,2639.9,10.32077631]
[1723288662470,1.0,2640.0,2639.9,29.88077631]
[1723288663955,1.0,2640.0,2639.9,22.54275631]
[1723288664401,1.0,2640.0,2639.9,19.67262937]
[1723288665925,1.0,2640.0,2639.9,21.56663937]
[1723288666329,1.0,2640.0,2639.9,25.71524937]
[1723288671634,1.0,2640.0,2639.9,26.26524937]
[1723288673467,1.0,2640.0,2639.9,28.15925937]
[1723288673686,1.0,2640.0,2639.9,31.15925937]
[1723288673687,0.17331509,2640.0,2639.9,31.15925937]
[1723288674227,0.17331509,2640.0,2639.9,33.87125937]
[1723288674470,0.1265577,2641.0,2640.7,1.89338]
[1723288674637,0.1265577,2641.0,2640.8,19.38668491]
[1723288674839,0.1265577,2641.0,2640.9,2.36686649]
[1723288675263,0.1265577,2641.0,2640.9,2.47718304]
[1723288680381,4.4691777,2641.0,2640.9,0.11031655]
[1723288680680,1.89333,2640.9,2640.6,19.38668491]
[1723288681043,1.89329,2640.9,2640.6,19.38668491]
[1723288681243,6.3624477,2641.0,2640.6,19.38668491]
[1723288681442,4.4691777,2641.0,2640.6,19.38668491]
[1723288681854,1.89337,2640.8,2640.6,19.38668491]
[1723288682753,1.89337,2640.8,2640.7,0.11044068]
[1723288682956,4.4691777,2641.0,2640.7,0.11044068]
[1723288683478,1.89336,2640.8,2640.7,0.11044068]
[1723288683678,4.34276,2640.8,2640.7,0.11044068]
[1723288685079,6.23612,2640.8,2640.7,0.11044068]
[1723288685644,4.34276,2640.8,2640.7,0.11044068]
[1723288686277,6.23612,2640.8,2640.7,0.11044068]
[1723288686490,13.07655621,2640.8,2640.7,0.11044068]
[1723288686659,13.07655621,2640.8,2639.4,2.3311]
[1723288686660,1.89401,2639.9,2639.4,2.3311]
[1723288686842,2.2656,2639.9,2639.2,2.3311]
[1723288687045,1.89422,2639.6,2639.3,0.378903]
[1723288687369,4.15964,2639.9,2639.3,0.378903]
[1723288687687,4.15964,2639.9,2638.9,6.12044]
[1723288687688,1.89429,2639.6,2638.9,6.12044]
[1723288687842,1.89429,2639.6,2638.9,6.12045]
[1723288688044,1.89391,2640.1,2638.7,2.712]
[1723288688292,4.89391,2640.1,2639.5,1.89428]
[1723288688589,1.89391,2640.1,2639.5,1.89428]
[1723288688939,4.15941,2640.2,2639.5,1.89428]
[1723288689143,2.2656,2640.2,2639.5,2.506261]
[1723288689390,1.89387,2640.1,2639.5,2.506261]
[1723288689982,2.2656,2640.2,2639.5,2.506221]
[1723288690344,4.15923,2640.5,2639.8,1.89406]
[1723288690585,1.89369,2640.4,2639.7,1.89408]
[1723288691105,4.89369,2640.4,2639.7,1.89408]
[1723288691470,1.89372,2640.3,2639.7,1.89408]
[1723288691672,1.89372,2640.3,2639.6,4.22531]
[1723288691973,1.89391,2640.1,2639.4,1.8943]
[1723288692678,1.89391,2640.1,2639.5,1.89429]
[1723288695088,2.2656,2640.2,2639.6,1.8942]
[1723288695492,4.15945,2640.2,2639.5,2.3311]
[1723288695820,4.15945,2640.2,2639.5,4.22538]
[1723288695978,4.15945,2640.2,2639.2,1.89446]
[1723288695979,1.89405,2639.9,2639.2,1.89446]
[1723288696407,1.89405,2639.9,2639.2,1.89445]
[1723288697122,1.89389,2640.1,2639.2,1.89445]
[1723288697278,1.89389,2640.1,2639.5,1.89428]
[1723288697715,1.89389,2640.1,2639.6,0.10789918]
[1723288698077,1.89389,2640.1,2639.7,19.38668491]
[1723288698822,2.2656,2640.2,2639.8,0.10777495]
[1723288699024,2.2656,2640.2,2639.7,19.38668491]
[1723288699684,2.2656,2640.2,2639.8,0.10777495]
[1723288699997,2.2656,2640.2,2639.7,19.38668491]
[1723288699998,4.1594,2640.2,2639.7,19.38668491]
[1723288700200,1.89387,2640.1,2639.8,0.10782227]
[1723288700509,1.89387,2640.1,2639.7,19.38668491]
[1723288700685,1.89387,2640.1,2639.9,0.10775425]
[1723288700883,1.89387,2640.1,2639.8,0.10781636]
[1723288701187,1.89393,2640.0,2639.9,0.10775425]
[1723288701511,4.15968,2639.8,2639.7,19.38668491]
[1723288702919,4.15951,2640.1,2639.7,19.38668491]
[1723288703122,1.89391,2640.1,2639.7,21.3253534]
[1723288703423,4.15935,2640.3,2639.7,19.38668491]
[1723288703631,4.15935,2640.3,2639.8,1.89408]
[1723288703931,4.15935,2640.3,2639.7,19.38668491]
[1723288704083,4.15935,2640.3,2639.8,19.38668491]
[1723288704279,4.15935,2640.3,2639.8,21.7478814]
[1723288704708,6.05312,2640.3,2639.8,19.38668491]
[1723288704987,1.8938,2640.2,2639.8,19.38668491]
[1723288705213,3.7878,2640.1,2639.8,19.38668491]
[1723288705521,1.89394,2640.0,2639.8,19.38668491]
[1723288705697,1.89376,2640.3,2639.8,21.71778491]
[1723288705887,4.89367,2640.4,2639.8,25.9730084]
[1723288706122,3.0,2640.4,2639.8,27.8670384]
[1723288706298,3.0,2640.4,2639.8,25.9730084]
[1723288707630,3.0,2640.4,2639.8,25.9729984]
[1723288708286,4.89365,2640.4,2639.9,1.89398]
[1723288708486,4.89365,2640.4,2639.8,24.0789784]
[1723288708810,4.89365,2640.4,2639.8,25.9730484]
[1723288709577,3.0,2640.4,2639.8,25.9730484]
[1723288709932,3.0,2640.4,2639.9,0.54757018]
[1723288710373,3.0,2640.4,2639.9,2.44153018]
[1723288710848,3.0,2640.4,2639.9,0.54757018]
[1723288711640,1.8936,2640.5,2639.9,0.54757018]
[1723288712181,1.8936,2640.5,2639.9,2.44156018]
[1723288712638,1.8936,2640.5,2640.0,0.10765666]
[1723288713654,1.89151903,2640.5,2640.0,0.10765666]
[1723288713859,3.0,2640.6,2640.0,0.59568834]
[1723288714075,4.2879,2640.9,2640.3,1.89369]
[1723288714467,0.1265577,2641.0,2640.5,2.4901]
[1723288714877,0.1265577,2641.0,2640.6,0.10728412]
[1723288715876,0.1265577,2641.0,2640.7,1.89342]
[1723288716081,0.1265577,2641.0,2640.8,0.20007041]
[1723288716305,0.1265577,2641.0,2640.8,2.20058039]
[1723288717959,0.1265577,2641.0,2640.8,0.30723039]
[1723288718482,0.1265577,2641.0,2640.8,0.10715998]
[1723288718849,0.1265577,2641.0,2640.7,1.8934]
[1723288719099,0.1265577,2641.0,2640.9,0.10709792]
[1723288719697,0.1265577,2641.0,2640.5,4.38362]
[1723288719991,0.1265577,2641.0,2640.6,1.8935]
[1723288720153,0.1265577,2641.0,2640.7,0.10660705]
[1723288720903,0.1265577,2641.0,2640.5,4.821985]
[1723288721703,0.1265577,2641.0,2640.8,0.10654498]
[1723288721905,2.5211577,2641.0,2640.3,2.4901]
[1723288722190,4.4144277,2641.0,2640.3,4.38377]
[1723288722378,4.4144277,2641.0,2640.4,0.10679328]
[1723288723357,1.8933,2640.9,2640.4,0.10679328]
[1723288723777,1.8933,2640.9,2640.1,2.4901]
[1723288723963,1.89344,2640.7,2640.2,0.10691746]
[1723288724588,3.78744,2640.3,2640.2,0.10691746]
[1723288724904,1.894,2640.0,2639.2,4.38456]
[1723288725110,1.89408,2639.8,2639.2,4.38456]
[1723288725268,1.89425,2639.6,2639.3,0.09994111]
[1723288725670,1.89425,2639.6,2638.9,4.38478]
[1723288725885,1.89425,2639.6,2639.4,0.10023302]
[1723288726061,1.89425,2639.6,2638.9,4.38478]
[1723288726263,1.89425,2639.6,2639.5,0.10017089]
[1723288726591,1.89425,2639.6,2639.5,0.10018269]
[1723288726792,4.28871,2639.8,2638.9,4.38477]
[1723288727000,1.89415,2639.7,2639.0,2.43360138]
[1723288727299,1.89422,2639.6,2639.0,2.43360138]
[1723288728003,4.28871,2639.8,2639.0,2.43356138]
[1723288728329,5.712,2640.2,2639.4,1.89436]
[1723288728330,2.3534,2640.1,2639.4,1.89436]
[1723288728523,1.89398,2640.0,2639.2,1.89445]
[1723288728692,5.6187,2640.0,2639.5,0.10035978]
[1723288728889,5.6187,2640.0,2639.2,1.89445]
[1723288729087,1.89405,2639.9,2639.6,0.10029765]
[1723288729335,2.69126,2639.9,2639.2,1.89445]
[1723288729488,2.69126,2639.9,2639.7,0.10023553]
[1723288729691,2.69126,2639.9,2639.2,1.89445]
[1723288729909,2.69126,2639.9,2639.2,2.32259361]
[1723288730117,2.69126,2639.9,2639.3,0.10048404]
[1723288730633,0.79721,2639.9,2639.3,0.10048404]
[1723288730833,2.3534,2639.8,2639.3,0.10048404]
[1723288731033,2.3534,2639.8,2639.0,19.38668491]
[1723288731202,1.89451,2639.2,2639.1,0.1005729]
[1723288731604,4.24791,2639.3,2638.7,19.38668491]
[1723288731809,1.89451,2639.3,2638.8,0.100966]
[1723288732133,1.89451,2639.3,2638.7,21.28152491]
[1723288732314,1.89451,2639.3,2638.9,0.10091565]
[1723288732522,1.89418,2639.7,2638.9,2.459]
[1723288732714,4.89418,2639.7,2639.0,0.10091255]
[1723288733225,1.89426,2639.6,2639.0,1.99556255]
[1723288733397,4.89426,2639.6,2639.0,1.99556255]
[1723288734634,3.0,2639.6,2639.0,1.99551255]
[1723288735705,3.0,2639.6,2639.0,2.79133095]
[1723288735924,0.59363654,2639.8,2639.2,1.89451]
[1723288736231,0.59363654,2639.8,2639.3,1.99575396]
[1723288736416,4.2473,2640.1,2639.4,2.459]
[1723288736601,4.94323,2640.1,2639.5,0.10114475]
[1723288737025,1.89406,2639.9,2639.5,0.10114475]
[1723288737207,1.89406,2639.9,2639.3,1.89442]
[1723288737388,1.89406,2639.9,2639.4,0.10120688]
[1723288738533,1.89427,2639.6,2639.4,0.10120688]
[1723288738899,1.89427,2639.6,2639.1,21.84568491]
[1723288739092,1.89427,2639.6,2639.5,0.10112114]
[1723288739296,1.89427,2639.6,2639.1,21.84568491]
[1723288739513,1.89427,2639.6,2639.5,0.10112704]
[1723288740253,3.78855,2639.6,2639.2,19.38668491]
[1723288740531,1.89442,2639.4,2639.2,19.38668491]
[1723288740696,1.89442,2639.4,2639.3,0.10130444]
[1723288741122,1.89444,2639.3,2639.2,19.38668491]
[1723288741327,1.89434,2639.5,2639.2,19.38668491]
[1723288742140,1.89392,2640.1,2639.4,1.89432]
[1723288742309,1.89375,2640.3,2639.5,0.07576532]
[1723288742640,1.89375,2640.3,2639.6,1.99153586]
[1723288743218,1.89375,2640.3,2639.6,21.37821077]
[1723288743426,1.8936,2640.5,2639.9,2.459]
[1723288743631,1.8936,2640.5,2640.0,19.48380232]
[1723288743831,1.89343,2640.7,2640.0,19.48380232]
[1723288744037,1.89351,2640.6,2640.0,19.48380232]
[1723288745339,1.89343,2640.7,2640.1,21.28053491]
[1723288745537,1.89343,2640.7,2640.2,1.93866849]
[1723288745830,1.89343,2640.7,2640.2,2.03523081]
[1723288746033,1.89352,2640.6,2640.2,2.03523081]
[1723288747015,3.0,2640.8,2640.2,2.03523081]
[1723288747625,1.89344,2640.7,2640.2,2.03523081]
[1723288748035,3.0,2640.8,2640.3,1.24129518]
[1723288748242,3.0,2640.8,2640.4,0.09643814]
[1723288748412,1.89338,2640.8,2640.4,0.09643814]
[1723288748615,4.89338,2640.8,2640.4,0.09643814]
[1723288749339,1.89348,2640.7,2640.4,0.09643814]
[1723288750402,3.0,2640.8,2640.4,0.09643814]
[1723288750605,1.89332,2640.9,2640.4,0.09643814]
[1723288751105,1.89336,2640.8,2640.4,0.09643814]
[1723288753848,5.0197977,2641.0,2640.4,0.53219595]
[1723288754840,5.0197977,2641.0,2640.4,2.42583595]
[1723288755046,0.1265577,2641.0,2640.5,1.89356]
[1723288755343,0.1265577,2641.0,2640.6,2.46371398]
[1723288758120,0.1265577,2641.0,2640.7,1.89337]
[1723288758327,0.1265577,2641.0,2640.8,0.4357084]
[1723288758530,0.1265577,2641.0,2640.8,0.53166221]
[1723288760457,0.1265577,2641.0,2640.9,2.3674]
[1723288760617,0.1265577,2641.0,2640.9,2.46329174]
[1723288769883,0.1265577,2641.0,2640.9,4.35658174]
[1723288770180,0.1265577,2641.0,2640.9,4.98157491]
[1723288778395,0.1265577,2641.0,2640.9,24.36825982]
[1723288778958,0.1265577,2641.0,2640.9,22.47496982]
[1723288779161,0.1265577,2641.0,2640.9,19.48257665]
[1723288780108,2.0197777,2641.0,2640.9,19.48257665]
[1723288780665,6.2298977,2641.0,2640.9,0.09589174]
[1723288780889,8.1231177,2641.0,2640.9,0.09589174]
[1723288781707,10.51720904,2641.0,2640.9,0.09500065]
[1723288782195,1.89367,2640.4,2640.2,19.38668491]
[1723288782392,1.89367,2640.4,2640.1,19.38668491]
[1723288782596,1.89354,2640.6,2640.3,0.0953731]
[1723288782777,1.89354,2640.6,2640.2,0.09543519]
[1723288782973,3.78716,2640.5,2640.4,0.09531101]
[1723288783204,1.89365,2640.4,2640.3,0.0953731]
[1723288783406,1.89365,2640.4,2640.1,19.38668491]
[1723288783597,1.89358,2640.5,2640.1,19.38668491]
[1723288785813,3.78721,2640.5,2640.1,19.38668491]
[1723288786015,1.89377,2640.3,2640.1,19.38668491]
[1723288786314,1.89379,2640.2,2640.1,19.38668491]
[1723288787372,1.89379,2640.2,2639.6,2.2864]
[1723288787373,1.89379,2640.2,2640.0,19.38668491]
[1723288787723,1.89386,2640.1,2639.7,19.38668491]
[1723288787910,1.89379,2640.2,2639.7,19.38668491]
[1723288790013,1.89389,2640.1,2639.7,19.38668491]
[1723288790974,1.8938,2640.2,2639.7,19.38668491]
[1723288791197,1.89399,2640.0,2639.7,19.38668491]
[1723288791711,3.78799,2640.0,2639.7,19.38668491]
[1723288792819,1.89399,2640.0,2639.7,19.38668491]
[1723288792991,1.89388,2640.1,2639.3,2.2864]
[1723288793186,1.89418,2639.7,2639.1,19.38668491]
[1723288793514,1.89418,2639.7,2639.2,2.35676949]
[1723288793876,1.89418,2639.7,2639.3,2.2864]
[1723288796601,1.89404,2639.9,2639.3,2.2864]
[1723288796925,3.7881,2639.9,2639.3,2.2864]
[1723288797214,3.7881,2639.9,2639.3,3.10959418]
[1723288797717,1.89404,2639.9,2639.3,3.10959418]
[1723288797920,3.78811,2639.9,2639.3,3.10959418]
[1723288798120,1.89404,2639.9,2639.3,3.10959418]
[1723288798482,3.7881,2639.9,2639.3,3.10959418]
[1723288798680,3.7881,2639.9,2639.4,0.50040942]
[1723288799215,1.89408,2639.8,2639.4,0.50040942]
[1723288800384,1.89415,2639.7,2639.3,3.10959418]
[1723288800618,1.89415,2639.7,2639.3,2.2864]
[1723288802185,1.89415,2639.7,2639.4,19.38668491]
[1723288802581,1.89415,2639.7,2639.5,0.0971446]
[1723288804748,4.38822,2639.6,2639.5,0.0971446]
[1723288805109,4.38822,2639.6,2638.9,2.2864]
[1723288805110,1.89432,2639.5,2638.9,2.2864]
[1723288805315,1.89432,2639.5,2639.0,0.0977505]
[1723288806051,3.78867,2639.5,2639.0,0.0977505]
[1723288806231,3.78867,2639.5,2639.0,0.52563955]
[1723288806441,1.89432,2639.5,2639.0,0.52563955]
[1723288806745,1.89418,2639.7,2639.0,2.42023955]
[1723288806949,1.89418,2639.7,2639.1,2.415]
[1723288807450,1.89418,2639.7,2639.2,0.09765574]
[1723288807612,1.89418,2639.7,2639.2,0.77820189]
[1723288807808,1.89404,2639.9,2639.2,2.67270189]
[1723288808007,4.89404,2639.9,2639.2,2.67270189]
[1723288808414,1.89404,2639.9,2639.2,2.67270189]
[1723288808649,1.89404,2639.9,2639.3,0.51634772]
[1723288808948,1.89404,2639.9,2639.4,0.09621113]
[1723288809410,1.89415,2639.7,2639.4,0.09621113]
[1723288809612,1.89409,2639.8,2639.4,0.09621113]
[1723288811159,1.89409,2639.8,2639.5,2.415]
[1723288811518,1.89409,2639.8,2639.6,0.09608688]
[1723288811720,3.02409,2639.8,2639.6,0.09608688]
[1723288817136,3.02409,2639.8,2639.7,19.38668491]
[1723288817337,1.13,2639.8,2639.7,19.38668491]
[1723288817536,1.13,2639.8,2639.7,19.48248552]
[1723288818670,4.89394,2640.0,2639.7,19.48248552]
[1723288818870,3.02394,2640.0,2639.7,21.46555532]
[1723288819774,4.91793,2640.0,2639.7,21.46555532]
[1723288819939,3.02394,2640.0,2639.7,21.46555532]
[1723288820326,4.91792,2640.0,2639.7,21.46555532]
[1723288820539,4.91793,2640.0,2639.7,21.46555532]
[1723288820963,3.02394,2640.0,2639.7,21.46555532]
[1723288821177,4.91793,2640.0,2639.7,21.46555532]
[1723288821839,1.13,2639.8,2639.7,21.46555532]
[1723288822964,1.13,2639.8,2639.7,19.48248552]
[1723288822965,3.02408,2639.8,2639.7,19.48248552]
[1723288824070,4.91816,2639.8,2639.7,0.09580061]
[1723288824235,13.37549018,2639.8,2639.7,0.09580061]
[1723288824436,2.2521,2639.3,2638.6,2.415]
[1723288824744,1.13,2639.1,2638.7,0.09592377]
[1723288825871,1.13,2639.3,2638.7,0.09592377]
[1723288826075,1.89437,2639.4,2638.8,2.415]
[1723288826373,3.02437,2639.4,2638.9,0.54395333]
[1723288828066,1.89447,2639.3,2638.9,0.54395333]
[1723288828251,1.89447,2639.3,2638.9,0.09579945]
[1723288829149,1.89451,2639.2,2638.9,0.09579945]
[1723288829347,3.02451,2639.2,2638.9,0.09579945]
[1723288829965,1.13,2639.0,2638.9,0.09579945]
[1723288830275,3.02465,2639.0,2638.9,0.09579945]
[1723288830788,5.411216,2639.0,2638.9,0.09579945]
[1723288831083,14.42516257,2639.0,2638.9,0.09579945]
[1723288831376,1.89528,2638.2,2637.6,2.4115]
[1723288831592,1.13,2637.9,2637.6,2.842217]
[1723288831869,3.02537,2638.0,2637.7,0.14135125]
[1723288832076,1.13,2638.0,2637.7,0.14135125]
[1723288832376,1.13,2638.0,2637.7,0.62927508]
[1723288833645,1.89528,2638.2,2637.7,0.62927508]
[1723288833871,1.89497,2638.6,2638.0,2.4115]
[1723288834251,1.89497,2638.6,2638.1,0.1421811]
[1723288834443,1.89483,2638.8,2638.4,2.4115]
[1723288834870,1.89469,2639.0,2638.5,0.14178934]
[1723288835251,5.716,2639.2,2638.5,0.14178934]
[1723288835252,3.78911,2639.2,2638.5,0.14178934]
[1723288835474,1.89453,2639.2,2638.5,2.56501564]
[1723288836260,1.89453,2639.2,2638.6,1.89488]
[1723288836783,1.89453,2639.2,2638.7,0.14125408]
[1723288837139,1.89453,2639.2,2638.5,2.4232263]
[1723288837479,1.89459,2639.1,2638.6,0.62479068]
[1723288837981,4.89437,2639.4,2638.7,4.3821305]
[1723288838135,1.89437,2639.4,2638.7,23.76881541]
[1723288838487,3.78867,2639.5,2638.8,4.47529072]
[1723288838794,1.89432,2639.5,2638.8,4.47529072]
[1723288838965,1.89432,2639.5,2638.9,0.74060306]
[1723288839373,1.89418,2639.7,2638.9,0.74060306]
[1723288839579,1.89418,2639.7,2639.0,0.14106219]
[1723288840569,1.8943,2639.5,2639.0,0.14106219]
[1723288840774,1.8943,2639.5,2639.0,2.36278533]
[1723288841580,1.89418,2639.7,2639.1,4.30608]
[1723288841786,3.0,2639.8,2639.1,4.44707824]
[1723288841961,1.89404,2639.9,2639.2,2.56138653]
[1723288842141,1.89404,2639.9,2639.2,2.7020671]
[1723288842349,1.89409,2639.8,2639.3,0.70081471]
[1723288842562,4.9737,2640.1,2639.4,0.14037569]
[1723288842859,1.89419,2639.7,2639.4,0.14037569]
[1723288843059,1.89423,2639.6,2639.4,0.14037569]
[1723288843269,1.89419,2639.7,2639.4,0.14037569]
[1723288843270,1.89429,2639.5,2639.4,0.14037569]
[1723288843979,1.89419,2639.7,2639.4,0.14037569]
[1723288844182,1.89406,2639.9,2639.4,0.14037569]
[1723288845378,1.89417,2639.7,2639.4,0.14037569]
[1723288846748,1.89406,2639.9,2639.4,0.14037569]
[1723288847385,1.89406,2639.9,2639.2,21.28117491]
[1723288847580,1.89413,2639.8,2639.5,0.14019378]
[1723288847798,1.89424,2639.6,2639.2,19.38668491]
[1723288849890,1.89408,2639.8,2639.2,19.38668491]
[1723288850100,1.89408,2639.8,2639.3,2.2717]
[1723288850272,1.89408,2639.8,2639.4,2.16583849]
[1723288850454,1.89408,2639.8,2639.3,2.2717]
[1723288850656,1.89372,2640.4,2639.7,1.8941]
[1723288850901,1.89372,2640.4,2639.9,2.2717]